Cogmind - Beta 15 @@@ ROGUE MODE // 2025.07.31 @ 22:19:00 Player: Lunace Result: Self-destructed Performance ------------- Evolutions (2) 1000 Regions Visited (9) 1800 Robots Destroyed (115) 575 Value Destroyed (4237) 4237 Prototype IDs (32) 640 Alien Tech Used (0) 0 Bonus (1770) 1770 TOTAL SCORE: 10022 Bonus ------- High Alert Combat Kills 256 Follower Combat Kills 14 Entered Garrisons 200 Used RIF Installer 1000 Aligned with FarCom 300 Cogmind --------- Core Integrity 366/550 Matter 126/300 Energy 275/275 System Corruption 2% Temperature Cool (0) Movement Rolling (135) Ox3 Location -8/Materials Parts ------- > --- POWER (1) -------- Deuterium Engine > --- PROPULSION (4) --- Light Treads Light Treads Armored Wheel Armored Wheel > --- UTILITY (4) ------ Huge Storage Unit Improved Light Armor Plating Relay Coupler [NC] (24) Relay Coupler [Sentry] (7) > --- WEAPON (2) ------- Mini Grenade Launcher Remote Datajack > --- INVENTORY (25) --- Light Angular Momentum Engine Armored Wheel Scrap Suit Improved Cooling System Coolant Injector Coolant Injector Hardened Medium Armor Plating Improved Light Armor Plating Improved Light Armor Plating Improved Light Armor Plating Layered Medium Armor Plating Relay Coupler [NC] (32) Relay Coupler [NC] (29) Relay Coupler [Grunt] (26) Relay Coupler [Grunt] (26) Relay Coupler [Sentry] (22) Relay Coupler [Sentry] (21) Magnetic Acceleration Cannon Improved Datajack Longsword +1 Peak State ------------ > --- POWER ------------ Light Angular Momentum Engine > --- PROPULSION ------- Advanced Treads Wheel Wheel Armored Wheel > --- UTILITY ---------- Coolant Injector Huge Storage Unit Hardened Medium Armor Plating Improved Light Armor Plating > --- WEAPON ----------- Arc Projector Longsword +1 > --- INVENTORY -------- Improved Ion Engine Deuterium Engine Scrap Suit Cryofiber Web Improved Cooling System Coolant Injector Coolant Injector Coolant Injector Huge Storage Unit High-capacity Matter Pod Improved Light Armor Plating Improved Light Armor Plating Improved Light Armor Plating Improved Light Armor Plating Improved Light Armor Plating High-powered Tractor Beam Arc Projector Mini Grenade Launcher Improved Datajack [Rating: 41] Favorites ----------- Power Improved Ion Engine Engine Improved Ion Engine Propulsion Armored Wheel Treads Light Treads Wheel Armored Wheel Utility Huge Storage Unit Device Disposable Heat Sink Storage Huge Storage Unit Processor Advanced Signal Interpreter Hackware Relay Coupler [Grunt] Protection Improved Light Armor Plating Weapon Improved Medium Laser Energy Gun Improved Medium Laser Ballistic Gun Assault Rifle Ballistic Cannon Assault Cannon Launcher Mini Grenade Launcher Special Weapon Remote Datajack Slashing Weapon Longsword +1 Build | -11 -10 -10 -9 -9 -9 -8 -8 -8 -8 ------- Run | Yrd Mat Min Mat Min Exi Min Mat Gar Mat Slots Evolved 4 | . . . 2 . . . 2 . . Power . | . . . . . . . . . . Propulsion 2 | . . . . . . . 2 . . Utility 2 | . . . 2 . . . . . . Weapon . | . . . . . . . . . . Parts Attached 84 | 9 5 . 21 4 . 3 23 16 3 Power 12 | 2 1 . 4 1 . . 2 2 . Engine 12 | 2 1 . 4 1 . . 2 2 . Core . | . . . . . . . . . . Reactor . | . . . . . . . . . . Propulsion 17 | 2 . . 4 . . . 5 6 . Treads 7 | 2 . . 2 . . . 1 2 . Leg . | . . . . . . . . . . Wheel 10 | . . . 2 . . . 4 4 . Hover . | . . . . . . . . . . Flight . | . . . . . . . . . . Utility 30 | 2 1 . 6 1 . 1 9 7 3 Device 9 | 1 1 . 3 . . 1 3 . . Storage 5 | 1 . . 2 . . . 1 1 . Processor 1 | . . . . . . . . 1 . Hackware 4 | . . . . . . . . 2 2 Protection 11 | . . . 1 1 . . 5 3 1 Artifact . | . . . . . . . . . . Weapon 25 | 3 3 . 7 2 . 2 7 1 . Energy Gun 13 | 2 . . 6 . . 1 4 . . Energy Cannon . | . . . . . . . . . . Ballistic Gun 4 | 1 1 . 1 . . . 1 . . Ballistic Cannon 1 | . . . . . . 1 . . . Launcher 5 | . 2 . . 2 . . 1 . . Special Weapon 1 | . . . . . . . . 1 . Impact Weapon . | . . . . . . . . . . Slashing Weapon 1 | . . . . . . . 1 . . Piercing Weapon . | . . . . . . . . . . Special Melee Weapon . | . . . . . . . . . . Unidentified Prototypes 4 | . . . 4 . . . . . . Parts Lost 18 | . . . 2 1 . 4 5 6 . Power 3 | . . . 2 . . . 1 . . Propulsion 4 | . . . . . . . 2 2 . Utility 7 | . . . . 1 . 3 . 3 . Weapon 4 | . . . . . . 1 2 1 . Highest Loss Streak 4 | . . . 1 1 . 4 4 2 . To Critical Strikes 1 | . . . . . . . . 1 . Average Backups 16 | 2 6 8 13 15 17 17 18 20 20 Power 1 | . 1 1 1 1 2 2 1 1 1 Propulsion 1 | 1 2 3 2 1 2 2 1 1 1 Utility 7 | . . 1 2 4 3 4 10 16 15 Weapon 4 | . 2 3 6 7 9 7 4 1 2 Tool/Special . | . . . . . . . . . . Unused Backups 50 | . 1 . 11 2 . . 14 7 15 Power 3 | . . . . 1 . . 1 . 1 Propulsion 13 | . . . 8 . . . 4 1 . Utility 23 | . . . 1 . . . 4 6 12 Weapon 10 | . 1 . 2 1 . . 5 . 1 Tool/Special 1 | . . . . . . . . . 1 Average Slot Usage (%) 95 | . 100 100 95 98 77 66 99 97 100 Engine 10 | . 14 14 10 11 11 11 9 9 9 Treads 11 | . 28 28 21 . . . 6 9 18 Wheel 17 | . . . . 22 22 22 28 24 18 Device 11 | . 14 14 21 13 22 . 11 . . Storage 10 | . 14 14 11 11 11 11 9 9 9 Hackware 1 | . . . . . . . . 4 12 Protection 12 | . . . 7 18 11 . 15 20 12 Energy Gun 11 | . 5 . 21 10 . 14 14 1 . Ballistic Gun 1 | . 21 14 . . . . 1 . . Launcher 2 | . 1 14 . 11 . . . 3 . Slashing Weapon 1 | . . . . . . . . 8 8 Peak Build Rating 41 | 7 7 7 19 20 17 23 41 41 40 Average Rating 24 | 5 7 7 14 18 14 18 34 36 37 On Entrance 17 | . 7 7 7 19 20 15 23 37 40 Naked Turns . | . . . . . . . . . . Heaviest Build 115 | 15 16 16 97 100 92 99 115 115 106 Greatest Support 48 | 40 40 40 40 24 24 24 44 48 24 Greatest Overweight (x) 5 | 2 . . 4 4 3 4 4 5 4 Average Overweight (x) 2 | . . . 1 3 3 3 2 3 3 Largest Inventory Capacity 25 | 8 8 8 25 25 25 25 25 25 25 Average Capacity 21 | 7 8 8 17 25 25 25 25 25 25 Most Carried 25 | 4 8 8 22 17 18 19 24 25 23 Average Carried 16 | 2 6 8 13 15 17 18 19 21 21 Final Capacity 25 | 8 8 8 25 25 25 25 25 25 25 Final Carried 23 | 4 8 8 15 15 18 17 21 23 21 Class Distribution -------------------- 53% | Mutant 35% | Scavenger-Mutant 10% | Bothacker-Mutant Dominant Class ---------------- Mutant | -10/Materials Mutant | -10/Mines Scavenger-Mutant | -9/Materials Mutant | -9/Mines Mutant | -9/Exiles Mutant | -8/Mines Scavenger-Mutant | -8/Materials Mutant | -8/Garrison Bothacker-Mutant | -8/Materials Resources | -11 -10 -10 -9 -9 -9 -8 -8 -8 -8 ----------- Run | Yrd Mat Min Mat Min Exi Min Mat Gar Mat Matter Collected 2234 | 256 281 . 369 133 187 77 568 363 . Remotely . | . . . . . . . . . . Salvage Created 3712 | 111 385 . 815 172 . 126 1090 1013 . Parts 243 | 5 34 . 50 12 . 7 81 54 . Haulers Intercepted 7 | . 1 . 5 . . . 1 . . Recyclers Shooed 1 | . . . . . . . 1 . . Parts Field Recycled . | . . . . . . . . . . Retrieved Matter . | . . . . . . . . . . Parts Self-Destructed . | . . . . . . . . . . Prevented . | . . . . . . . . . . Kills | -11 -10 -10 -9 -9 -9 -8 -8 -8 -8 ------- Run | Yrd Mat Min Mat Min Exi Min Mat Gar Mat Combat Hostiles Destroyed 87 | . 11 . 16 7 . 3 26 24 . Melee 13 | . . . . . . . . 13 . Guns 25 | . 5 . 8 2 . 1 9 . . Cannons 1 | . . . . . . . 1 . . AOE 46 | . 6 . 7 5 . 2 15 11 . Classes Destroyed 15 | 2 6 . 2 2 . . 2 1 . Worker 5 | . 1 . 3 . . . 1 . . Builder 4 | . 1 . . . . . 3 . . Tunneler 3 | 1 . . . 2 . . . . . Hauler 7 | . 1 . 5 . . . 1 . . Recycler 4 | 1 1 . 1 . . . 1 . . Watcher 6 | . 1 . 1 . . . 4 . . Swarmer 32 | . 6 . 7 . . . 11 8 . Grunt 27 | . 5 . 3 5 . 3 6 5 . Brawler 3 | . . . 2 . . . . 1 . Duelist 2 | . . . . 1 . . . 1 . Sentry 13 | . . . 4 . . . 4 5 . Specialist 3 | . . . . . . . 3 . . Hunter 4 | . . . . . . . 2 2 . Programmer 2 | . . . . . . . . 2 . Assembled 1 | . . . . 1 . . . . . Best Kill Streak 13 | 1 4 . 10 4 . 3 9 13 . Combat Bots Only 13 | . 3 . 7 2 . 3 7 13 . Max Kills in Single Turn 5 | 1 2 . 5 3 . 2 5 3 . Gunslinging . | . . . . . . . . . . Exploded 4 | . 2 . 4 2 . 2 3 3 . Melee 1 | . . . . . . . . 1 . Uniques/NPCs Destroyed . | . . . . . . . . . . Combat | -11 -10 -10 -9 -9 -9 -8 -8 -8 -8 -------- Run | Yrd Mat Min Mat Min Exi Min Mat Gar Mat Hostile Shots Fired 339 | . 33 . 67 8 . 9 110 110 2 Missed 102 | . 10 . 17 3 . 1 37 33 1 Hits 237 | . 23 . 50 5 . 8 73 77 1 Melee 2 | . . . . 1 . . . 1 . Projectile 235 | . 23 . 50 4 . 8 73 76 1 Critical Strikes 6 | . . . . . . . 2 4 . Damage Taken 3646 | . 346 . 632 268 . 164 1074 1145 17 Core 366 | . 62 . 62 23 . 35 57 127 . Absorbed by Shields 20 | . . . . . . . 8 12 . Regen/Repaired (Parts) 109 | . . . 24 . . . 85 . . Core Remaining (%) 81 | 100 . 75 . . . 70 . . . Volleys Fired 229 | 4 37 . 51 15 . 3 88 29 2 Largest 2 | 2 2 . 2 2 . 2 2 1 1 Hottest 112 | 70 70 . 112 112 . 112 110 30 30 Shots Fired 404 | 8 69 . 101 32 . 6 156 30 2 Gun 308 | 8 64 . 99 11 . 5 121 . . Cannon 25 | . . . . . . . 25 . . Launcher 51 | . 5 . 2 21 . 1 10 11 1 Special 20 | . . . . . . . . 19 1 Kinetic 99 | 4 57 . . . . . 38 . . Thermal 152 | 4 7 . 99 11 . 5 26 . . Explosive 51 | . 5 . 2 21 . 1 10 11 1 Electromagnetic 82 | . . . . . . . 82 . . Robot Hit Streak 16 | 5 8 . 9 5 . 6 9 16 3 Robot Miss Streak 5 | 1 4 . 5 2 . 1 5 2 . Penetration Max . | . . . . . . . . . . Secondary Targets 1 | . . . . 1 . . . . . Max Gunslinging Chain 1 | . . . . 1 . . . . . Shots Hit Robots 299 | 6 36 . 65 12 . 3 95 81 1 Core Hits 164 | 3 22 . 32 14 . 6 53 34 . Critical Kills 1 | . 1 . . . . . . . . Critical Parts Destroyed . | . . . . . . . . . . Critical Strikes 24 | . 2 . 7 . . . 2 13 . Burn 9 | . 1 . 7 . . . 1 . . Destroy 1 | . 1 . . . . . . . . Blast 1 | . . . . . . . 1 . . Sever 13 | . . . . . . . . 13 . Melee Attacks 81 | . . . . . . . 8 71 2 Impact . | . . . . . . . . . . Slashing 81 | . . . . . . . 8 71 2 Piercing . | . . . . . . . . . . Sneak Attacks . | . . . . . . . . . . Combat Hostiles . | . . . . . . . . . . Follow-up Attacks . | . . . . . . . . . . Damage Inflicted 9837 | 85 817 . 1500 801 . 183 2611 3840 . Guns 2863 | 85 407 . 1071 102 . 32 1166 . . Cannons 250 | . . . . . . . 250 . . Explosions 3759 | . 410 . 429 699 . 151 1195 875 . Melee 2965 | . . . . . . . . 2965 . Ramming . | . . . . . . . . . . Kinetic 847 | 49 382 . . . . . 416 . . Thermal 1700 | 36 25 . 1071 102 . 32 434 . . Explosive 3668 | . 410 . 429 699 . 151 1104 875 . Electromagnetic 657 | . . . . . . . 657 . . Impact . | . . . . . . . . . . Slashing 2965 | . . . . . . . . 2965 . Piercing . | . . . . . . . . . . Highest Corruption 4 | . . . 4 4 4 4 . 2 2 Average Corruption 3 | . . . 4 4 4 4 . 1 2 Corruption Purged . | . . . . . . . . . . Corruption Blocked . | . . . . . . . . . . Effects 95 | . . . 29 22 11 11 . 21 1 Message Errors 20 | . . . 8 4 1 2 . 4 1 Matter Fused 22 | . . . 7 5 3 2 . 5 . Heat Flow Errors 15 | . . . 6 4 . 2 . 3 . Energy Discharges 16 | . . . 4 2 3 2 . 5 . Parts Fused 1 | . . . 1 . . . . . . Data Loss (minor) 12 | . . . 2 3 3 2 . 2 . Data Loss (major) 2 | . . . . . 1 . . 1 . Misfires 7 | . . . 1 4 . 1 . 1 . Overload Shots . | . . . . . . . . . . Overflow Damage 371 | . 33 . 10 18 . 15 126 169 . Projectiles . | . . . . . . . . . . Explosions 268 | . 33 . 10 18 . 15 126 66 . Melee 103 | . . . . . . . . 103 . Knockbacks 2 | . . . . . . . 2 . . Impact . | . . . . . . . . . . Kinetic 2 | . . . . . . . 2 . . Secondary . | . . . . . . . . . . Self-Inflicted Damage 452 | . 119 . 30 196 . 35 13 59 . Shots 18 | . 3 . 2 9 . 1 1 2 . Rammed . | . . . . . . . . . . Targets Rammed . | . . . . . . . . . . Kicked . | . . . . . . . . . . Crushed . | . . . . . . . . . . Highest Temperature 228 | 27 18 . 199 228 . 200 57 224 . Average Temperature 64 | 12 8 . 82 74 . 63 12 60 . Received Heat Transfer 756 | . 90 . 126 12 . 72 225 231 . Siege Activations . | . . . . . . . . . . Martial Activations . | . . . . . . . . . . Shielding Activations . | . . . . . . . . . . Robots Disrupted 1 | . . . . . . . 1 . . Combat Hostiles 1 | . . . . . . . 1 . . Robots Corrupted 2 | . . . . . . . 2 . . Combat Hostiles 1 | . . . . . . . 1 . . Parts Fried 8 | . . . . . . . 8 . . Impact Corruptions . | . . . . . . . . . . Robots Melted 1 | . . . 1 . . . . . . Combat Hostiles 1 | . . . 1 . . . . . . Parts Melted 10 | . . . 10 . . . . . . Heat Transferred 4231 | 111 148 . 2886 222 . 74 790 . . Parts Sabotaged . | . . . . . . . . . . Parts Stolen . | . . . . . . . . . . Parts Stripped . | . . . . . . . . . . Power Chain Reactions 2 | . . . . . . . 2 . . Alert | -11 -10 -10 -9 -9 -9 -8 -8 -8 -8 ------- Run | Yrd Mat Min Mat Min Exi Min Mat Gar Mat Maximum Alert Level 4 | . . . . . . . 2 4 2 Low Security (%) 61 | 100 100 100 100 100 . 100 44 . . Level 1 19 | . . . . . . . 55 19 . Level 2 3 | . . . . . . . . 11 100 Level 3 8 | . . . . . . . . 38 . Level 4 6 | . . . . . . . . 30 . Level 5 . | . . . . . . . . . . High Security . | . . . . . . . . . . Max Security . | . . . . . . . . . . Peak Influence 1292 | 5 146 53 179 72 . 76 401 1292 629 Initial 629 | . 3 53 4 64 . . . 203 629 Average 268 | . 59 37 55 21 . 16 214 850 613 Influence Increases 3290 | 10 377 . 511 233 . 101 885 1149 24 Destroy 0b10 Robot/C 1760 | . 220 . 320 120 . 60 520 520 . Destroy 0b10 Robot/NC 160 | 10 25 . 50 10 . . 50 15 . Destroy Leader 306 | . 44 . 92 10 . 10 130 20 . Allied During Kill 24 | . . . . . . . . 24 . Successful Hack 86 | . 19 . 9 . . . 32 21 5 Disable Machine 135 | . 30 . 30 . . 15 45 . 15 Anti-Garrison Action 450 | . . . . . . . . 450 . Destroy Structure 294 | . 39 . 10 93 . 16 93 39 4 Lose Combat Pursuer 75 | . . . . . . . 15 60 . Influence Decreases 2687 | 5 244 125 357 400 . 101 572 170 713 Entered New Map 972 | . 2 85 9 103 . . . 110 663 Time Decay 1519 | 5 242 40 328 287 . 91 476 . 50 Lost Part 150 | . . . 20 10 . 10 50 60 . Purge Threat 46 | . . . . . . . 46 . . Squads Dispatched 12 | . 3 . . . . . 8 . 1 Investigation 6 | . 2 . . . . . 3 . 1 Extermination . | . . . . . . . . . . Reinforcement 6 | . 1 . . . . . 5 . . Assault . | . . . . . . . . . . Garrison . | . . . . . . . . . . Intercept . | . . . . . . . . . . Searches Triggered . | . . . . . . . . . . Construction Impeded 1 | . . . . . . . 1 . . Haulers Reinforced . | . . . . . . . . . . Active Scanning Responses . | . . . . . . . . . . Cargo Convoy Interrupts . | . . . . . . . . . . Stealth | -11 -10 -10 -9 -9 -9 -8 -8 -8 -8 --------- Run | Yrd Mat Min Mat Min Exi Min Mat Gar Mat Distress Signals 2 | . 1 . 1 . . . . . . Communications Jammed . | . . . . . . . . . . Distress Signals . | . . . . . . . . . . Times Spotted 127 | . 18 . 28 9 . 3 31 33 5 Peak Tracking Total 8 | . 4 . 7 2 . 3 4 8 5 Tactical Retreats 5 | . . . . . . . 1 4 . Traps | -11 -10 -10 -9 -9 -9 -8 -8 -8 -8 ------- Run | Yrd Mat Min Mat Min Exi Min Mat Gar Mat Traps Triggered 12 | . 1 . . . . . 2 9 . Indirectly . | . . . . . . . . . . Trap Hack Attempts . | . . . . . . . . . . Triggered . | . . . . . . . . . . Disarmed . | . . . . . . . . . . Reprogrammed . | . . . . . . . . . . Reused . | . . . . . . . . . . Traps Extracted . | . . . . . . . . . . Installed . | . . . . . . . . . . Triggered . | . . . . . . . . . . Machines | -11 -10 -10 -9 -9 -9 -8 -8 -8 -8 ---------- Run | Yrd Mat Min Mat Min Exi Min Mat Gar Mat Machines Disabled 16 | . 3 . 2 . . 1 3 6 1 Max in Single Turn 1 | . 1 . 1 . . 1 1 1 1 Garrison Relay 6 | . . . . . . . . 6 . Phase Generator 1 | . . . . . . . . 1 . Machines Repaired . | . . . . . . . . . . Machines Dismantled . | . . . . . . . . . . Machines Sabotaged . | . . . . . . . . . . Overloaded Fab Kills . | . . . . . . . . . . Hacking | -11 -10 -10 -9 -9 -9 -8 -8 -8 -8 --------- Run | Yrd Mat Min Mat Min Exi Min Mat Gar Mat Machines Accessed 36 | . 4 1 8 1 2 . 13 5 2 Terminals 25 | . 3 1 5 1 . . 8 5 2 Fabricators . | . . . . . . . . . . Repair Stations 3 | . 1 . 1 . . . 1 . . Recycling Units 4 | . . . 2 . . . 2 . . Scanalyzers 1 | . . . . . . . 1 . . Garrison Access 1 | . . . . . . . 1 . . Total Hacks 88 | . 12 1 19 2 2 . 37 11 4 Successful 40 | . 5 . 9 1 2 . 19 3 1 Failed 47 | . 7 1 9 1 . . 18 8 3 Catastrophic 10 | . . 1 2 . . . 6 1 . Database Lockouts 1 | . . . 1 . . . . . . Manual 52 | . 10 1 13 2 1 . 22 1 2 Terminals 64 | . 10 1 13 2 . . 23 11 4 Fabricators . | . . . . . . . . . . Repair Stations 7 | . 2 . 2 . . . 3 . . Recycling Units 9 | . . . 4 . . . 5 . . Scanalyzers 5 | . . . . . . . 5 . . Garrison Access 1 | . . . . . . . 1 . . Terminal Hacks 15 | . 2 . 2 1 2 . 4 3 1 Record 1 | . . . . . 1 . . . . Robot Schematic 1 | . 1 . . . . . . . . Prototype ID Bank 3 | . 1 . 1 1 . . . . . Open Door 1 | . . . . . . . . 1 . Branch Access Points 1 | . . . 1 . . . . . . Emergency Access Points 1 | . . . . . . . . 1 . Terminal Index 2 | . . . . . . . 1 . 1 Unreport Threat 1 | . . . . . . . 1 . . Zone Layout 2 | . . . . . . . 2 . . Patrol Navigation 1 | . . . . . . . . 1 . Proto ID Catalog 1 | . . . . . 1 . . . . Fabricator Hacks . | . . . . . . . . . . Repair Station Hacks 5 | . 1 . 2 . . . 2 . . Scan Component 3 | . 1 . 1 . . . 1 . . Repair 2 | . . . 1 . . . 1 . . Recycling Unit Hacks 3 | . . . 1 . . . 2 . . Retrieve Components 3 | . . . 1 . . . 2 . . Scanalyzer 4 | . . . . . . . 4 . . Insert Component 4 | . . . . . . . 4 . . Garrison Access Hacks 1 | . . . . . . . 1 . . Unlock Access 1 | . . . . . . . 1 . . Unauthorized Hacks 12 | . 2 . 4 . . . 6 . . Terminals 12 | . 2 . 4 . . . 6 . . Track 1 | . . . . . . . 1 . . Botnet 10 | . 2 . 4 . . . 4 . . Operators 1 | . . . . . . . 1 . . Fabricators . | . . . . . . . . . . Repair Stations . | . . . . . . . . . . Recycling Units . | . . . . . . . . . . Scanalyzers . | . . . . . . . . . . Garrison Access . | . . . . . . . . . . Data Cores Recovered . | . . . . . . . . . . Used . | . . . . . . . . . . Hacking Detections 33 | . 4 1 8 1 . . 12 5 2 Full Trace Events 5 | . 1 . . . . . 2 1 1 Feedback Events . | . . . . . . . . . . Feedback Blocked . | . . . . . . . . . . Robot Schematics Acquired 1 | . 1 . . . . . . . . Robots Built . | . . . . . . . . . . Authchips . | . . . . . . . . . . Time . | . . . . . . . . . . Total Robot Build Rating . | . . . . . . . . . . Part Schematics Acquired . | . . . . . . . . . . Parts Built . | . . . . . . . . . . Authchips . | . . . . . . . . . . Time . | . . . . . . . . . . Total Part Build Rating . | . . . . . . . . . . Parts Repaired 2 | . . . 1 . . . 1 . . Time 58 | . . . 26 . . . 32 . . Parts Recycled . | . . . . . . . . . . Recycled Matter . | . . . . . . . . . . Retrieved Matter . | . . . . . . . . . . Retrieved Components 14 | . . . 3 . . . 11 . . Parts Scanalyzed . | . . . . . . . . . . Part Schematics Acquired . | . . . . . . . . . . Parts Damaged . | . . . . . . . . . . Bothacking | -11 -10 -10 -9 -9 -9 -8 -8 -8 -8 ------------ Run | Yrd Mat Min Mat Min Exi Min Mat Gar Mat Used RIF Installer 2 | . . . . . . . . 2 . Watcher Feeds 1 | . . . . . . . . 1 . Robots Hacked 4 | . . . . . . . . 3 1 Non-combat . | . . . . . . . . . . Combat 4 | . . . . . . . . 3 1 Robot Hacks Applied 4 | . . . . . . . . 3 1 formatsys_high 4 | . . . . . . . . 3 1 Relay Couplers Released 26 | . . . . . . . . 26 . Machine Destruction 26 | . . . . . . . . 26 . Attached 4 | . . . . . . . . 2 2 Fabnet Peak Effective % . | . . . . . . . . . . Robots Rewired 7 | . . . . . . . . 7 . Allies Hacked . | . . . . . . . . . . Hacks Repelled . | . . . . . . . . . . Allies | -11 -10 -10 -9 -9 -9 -8 -8 -8 -8 -------- Run | Yrd Mat Min Mat Min Exi Min Mat Gar Mat Total Allies 12 | . . . . 1 . . . 10 1 Largest Group 11 | . . . . 1 . . . 10 11 Highest-Rated Group 229 | . . . . 31 . . . 214 229 Highest-Rated Ally 39 | . . . . 31 . . . 39 39 Total Orders . | . . . . . . . . . . Ally Attacks 8 | . . . . . . . . 6 2 Total Damage 113 | . . . . . . . . 91 22 Kills 2 | . . . . . . . . 2 . Allies Corrupted . | . . . . . . . . . . Allies Melted . | . . . . . . . . . . Intel | -11 -10 -10 -9 -9 -9 -8 -8 -8 -8 ------- Run | Yrd Mat Min Mat Min Exi Min Mat Gar Mat Active Infowar (turns) 2355 | 37 552 81 1177 170 336 2 . . . Seismic 2355 | 37 552 81 1177 170 336 2 . . . Robot Analysis Total . | . . . . . . . . . . Derelict Logs Recovered 4 | . . 1 . 3 . . . . . Drone Launches . | . . . . . . . . . . Drone Recoveries . | . . . . . . . . . . Exploration | -11 -10 -10 -9 -9 -9 -8 -8 -8 -8 ------------- Run | Yrd Mat Min Mat Min Exi Min Mat Gar Mat Turns Passed 8193 | 126 552 81 1787 923 336 403 2222 1649 114 Spaces Moved 3811 | 58 247 45 546 517 247 271 874 940 66 Core 4 | 4 . . . . . . . . . Treads 866 | 54 247 45 520 . . . . . . Legs . | . . . . . . . . . . Wheels 2941 | . . . 26 517 247 271 874 940 66 Hover . | . . . . . . . . . . Flight . | . . . . . . . . . . Fastest Speed 50 | 50 160 160 150 135 135 135 115 117 135 Average Speed 150 | 155 160 160 239 141 135 135 124 134 149 Slowest Speed 320 | 160 160 160 320 150 135 150 150 160 150 Overloaded Moves . | . . . . . . . . . . Propulsion Burnouts . | . . . . . . . . . . Robots Hopped . | . . . . . . . . . . Potential Cave-ins . | . . . . . . . . . . Cave-ins Triggered . | . . . . . . . . . . Exploration Rate (%) 53 | 5 52 13 49 89 64 72 78 99 14 Regions Visited 9 Branch Regions 4 Pre-discovered Areas 3 | . . . . 2 1 . . . . Known Exits Taken 4 | . . . 1 . 1 1 1 . . Unknown Exits Taken 4 | 1 1 1 . 1 . . . . . Scrap Searched 3 | . . . . 2 . 1 . . . Spaces Dug 15 | . . . . . . . 10 4 1 Terrain Destroyed 345 | . 40 . 7 131 . 16 96 51 4 Melee 12 | . . . . . . . 7 4 1 Projectile 7 | . . . . . . . 7 . . AOE 326 | . 40 . 7 131 . 16 82 47 3 Terrain Rammed . | . . . . . . . . . . Walls Destroyed . | . . . . . . . . . . Machines Disabled . | . . . . . . . . . . Actions | -11 -10 -10 -9 -9 -9 -8 -8 -8 -8 --------- Run | Yrd Mat Min Mat Min Exi Min Mat Gar Mat Total 5798 | 82 336 54 935 680 251 303 1844 1236 77 Wait 1302 | 8 28 10 255 131 . 17 774 78 1 Move 3803 | 57 246 44 545 516 246 270 874 939 66 Hop . | . . . . . . . . . . Pick Up 99 | 3 11 . 27 4 2 3 30 19 . Fast Attach 39 | 8 . . 11 . . 2 13 5 . Attach 33 | . 1 . 7 4 . 5 8 6 2 Detach 10 | . . . 3 3 2 . 2 . . Swap 43 | 1 6 . 7 4 . 1 11 11 2 Drop 91 | 1 7 . 29 3 1 2 31 15 2 Fire 229 | 4 37 . 51 15 . 3 88 29 2 Melee 81 | . . . . . . . 8 71 2 Ram . | . . . . . . . . . . Kick . | . . . . . . . . . . Crush . | . . . . . . . . . . Escape Stasis 63 | . . . . . . . . 63 . Rewire 5 | . . . . . . . 5 . . Trap . | . . . . . . . . . . Miscellaneous . | . . . . . . . . . . Route ------- -11/Scrapyard -10/Materials (discovered 3 exits: *Mat / *Min x2) -10/Mines -9/Materials (discovered 2 exits: *Mat / *Min) -9/Mines (discovered 3 exits: *Mat x2 / *Exi) -9/Exiles (discovered 2 exits: *Min x2) -8/Mines -8/Materials (discovered 4 exits: [*Fac x3] / Gar) -8/Garrison (discovered 3 exits: *Mat x3) -8/Materials History --------- Turn | Location | Event 4 | -11/Scrapyard | Discovered new exit (range 16) 127 | -11/Scrapyard | Entered Materials 312 | -10/Materials | Build established: Mutant 411 | -10/Materials | Discovered new exit (range 14) 462 | -10/Materials | Discovered new exit (range 16) 660 | -10/Materials | Discovered new exit (range 11) 679 | -10/Materials | Entered Mines 734 | -10/Mines | Discovered new exit (range 3) 760 | -10/Mines | Entered Materials 760 | -9/Materials | Evolved 2 slots: Utility x2 761 | -9/Materials | Identified exit to Mines 1241 | -9/Materials | Repaired Ion Engine 1658 | -9/Materials | Build established: Scavenger-Mutant 2049 | -9/Materials | Discovered new exit (range 3) 2319 | -9/Materials | Destroyed 7 combat bots 2432 | -9/Materials | Central database locked down 2547 | -9/Materials | Entered Mines 2550 | -9/Mines | Received a Mining Laser from a helpful Derelict 2579 | -9/Mines | Joined a pair of Derelicts in attacking an 0b10 outpost 2587 | -9/Mines | Learned location of Zion (-6) 2601 | -9/Mines | Met a Derelict bent on vengeance 2628 | -9/Mines | Learned location of Storage (-7) 2749 | -9/Mines | Discovered new exit (range 7) 2794 | -9/Mines | Build established: Mutant 2861 | -9/Mines | Identified exit to Materials 2925 | -9/Mines | Excavation squad dispatched 2925 | -9/Mines | A large section of the Mines collapsed 3464 | -9/Mines | Deemed a non-threat by the Exiles lab entrance 3464 | -9/Mines | Discovered new exit (range 5) 3470 | -9/Mines | Entered Exiles 3471 | -9/Exiles | Identified exit to Mines 3505 | -9/Exiles | Met 8R-AWN 3527 | -9/Exiles | Met EX-HEX 3619 | -9/Exiles | Met EX-BIN 3635 | -9/Exiles | Aligned with FarCom system 3636 | -9/Exiles | Given EX-Vault access code 3667 | -9/Exiles | Opened EX-Vault 3677 | -9/Exiles | Found Longsword +1 3705 | -9/Exiles | Warned to stay clear of 0b10 Research branches 3740 | -9/Exiles | Met EX-DEC 3790 | -9/Exiles | Discovered exit to Mines (range 14) 3806 | -9/Exiles | Left Exiles lab with Longsword +1 3806 | -9/Exiles | Entered Mines 3839 | -8/Mines | Lost 4 parts (3u1w) 3902 | -8/Mines | Found a Scrap Suit stashed away for nefarious purposes 3904 | -8/Mines | Found Scrap Suit 4199 | -8/Mines | Discovered exit to Materials (range 8) 4209 | -8/Mines | Entered Materials 4209 | -8/Materials | Evolved 2 slots: Propulsion x2 4511 | -8/Materials | Build established: Scavenger-Mutant 4747 | -8/Materials | Discovered new exit (range 15) 5128 | -8/Materials | Discovered new exit (range 15) 5283 | -8/Materials | Destroyed 7 combat bots 5308 | -8/Materials | Build established: Mutant 5319 | -8/Materials | Repaired Arm. Wheel 5613 | -8/Materials | Lost 4 parts (1p1n2w) 5686 | -8/Materials | Discovered new exit (range 7) 5847 | -8/Materials | Build established: Scavenger-Mutant 6431 | -8/Materials | Identified exit to Garrison 6431 | -8/Materials | Entered Garrison 6438 | -8/Garrison | Phase Generator disabled 6524 | -8/Garrison | Garrison Relay disabled 6582 | -8/Garrison | Installed Relay Interface Framework 6615 | -8/Garrison | Triggered checkpoint 6711 | -8/Garrison | Triggered checkpoint 6813 | -8/Garrison | Build established: Mutant 6813 | -8/Garrison | Destroyed 13 combat bots 6893 | -8/Garrison | Discovered new exit (range 12) 6979 | -8/Garrison | Garrison Relay disabled 7146 | -8/Garrison | Discovered new exit (range 12) 7309 | -8/Garrison | Triggered checkpoint 7311 | -8/Garrison | Garrison Relay disabled 7413 | -8/Garrison | Triggered checkpoint 7492 | -8/Garrison | Garrison Relay disabled 7529 | -8/Garrison | Discovered new exit (range 10) 7547 | -8/Garrison | Triggered checkpoint 7567 | -8/Garrison | Triggered checkpoint 7574 | -8/Garrison | Garrison Relay disabled 7612 | -8/Garrison | Expanded RIF knowledge: Watcher Feeds 7613 | -8/Garrison | Build established: Bothacker-Mutant 7759 | -8/Garrison | Triggered checkpoint 7772 | -8/Garrison | Garrison Relay disabled 7915 | -8/Garrison | Identified exit to Materials 8080 | -8/Garrison | Entered Materials 8080 | -8/Materials | Accompanied by 10 allies 8194 | -8/Materials | Self-destructed Last Messages --------------- >>Index(Terminals) Found 12 terminals. Downloaded coordinate data. 08113_ Discarded Relay Coupler [Grunt]. 08114_ Discarded Adv. Signal Interpreter. 08114_ K-01 Serf cleans the Nuclear Reactor. 08120_ K-01 Serf collects debris. 08135_ Connecting with Terminal... 08135_ ALERT: Suspicious activity at Terminal M011. Dispatching Investigation squad. 08148_ DP37WXT|UYXCZLZR7UHULW91N 08153_ Jacked Y-45 Defender... >>formatsys_high Rerouting network defenses. Erasing system data. Installing primary routines, ETC: 6. 08160_ TF Node disabled. 08160_ Imp. Sensor Array tumbles out of TF Node. 08160_ Imp. Signal Interpreter tumbles out of TF Node. Map ----- +----------------------------------------------------+ | ?????????????????????????????????????????????????? | | ?????????????????????????????????????????????????? | | ?????????????????????????????????????????????????? | | ?????????????????????????????????????????????????? | | ?????????????????????????????????????????????????? | | ?????????????????????????????????????????????????? | | ?????????????????????????????????????????????????? | | ?????????????????????????????????????????????????? | | ?????????????????????????????????????????????????? | | ?????????????????????????????????????????????????? | | ?????????????????????????????????????????????????? | | ?????????????????????????????????????????????????? | | ?????????????????????????????????????????????????? | | ?????????????????????????????????????????????????? | | ?????????????????????????????????????????????????? | | ???????????????????????????????g""" #??????????? | | ?????????????????########?????? """ #??????????? | | ?????????????????# #????? """g ???????????? | | ?????????????????# #????? b gg ????????????? | | ?????????????????# [ #???? g ?????????????? | | ?????????????????# ! #????gY """ ?????????????? | | ?????????????????# ##### """ #??????????? | | ?????????????????# # g """ #??????????? | | ?????????????????# + g #??????????? | | ?????????????????# # #??????????? | | ?????????????????# #@ Y """ #??????????? | | ?????????????????#! # b """ #??????????? | | ?????????????????# # """ ???????????? | | ?????????????????# # ### #??????????? | | ?????????????????# #Y#?? #??????????? | | ?????????????????######## ###? """ #??????????? | | ?????????????????# # g ## """ #??????????? | | ?????????????????# # ! ! ## """ #??????????? | | ?????????????????# ! / h ## #??????????? | | ?????????????????# # Y ##^ #??????????? | | ?????????????????# # ## """ #??????????? | | ?????????????????# ## ### """ #??????????? | | ????????????????# [= ## #?# """ #??????????? | | ????????????????##== ## #?# ###########? | | ?????????????????#== ## #?# # #? | | ?????????????????####### #?# """ # T """ #? | | ???????????????????######/#### """ # """ #? | | ???????????????????# # """ # """ #? | | ???????????????????# """ + #? | | ???????????????????# """"" T"# # #? | | ???????????????????# """"" ""# """ # #? | | ???????????????????# """"" # """ #! #? | | ???????????????????# # """ ###########? | | ???????????????????# ! / !# #?? ????? | | ????????????????????? # #? """ #?? | +----------------------------------------------------+ Best States ------------- Heat Dissipation 67 Coolant Potential 100 Energy Generation 18 Energy Capacity 275 Matter Stores 300 Matter Capacity 300 Sight Range 16 Terrain Scan Density 10 Armor Coverage 600 Resistance: KI 20 Evasion (%) 40 Recoil Reduction 2 Relay Coupler Types 2 Relay Coupler Value 33 Item Schematics ----------------- None Robot Schematics ------------------ M-13 Machinist | -10/Materials | Hacked Fabricated ------------ Nothing Repaired ---------- Ion Engine | 60% | -9/Materials Arm. Wheel | 15% | -8/Materials Alien Tech Used ----------------- None Achievements -------------- None Challenges ------------ None Game ------ Seed EnergyCommPropulsion Manual? 0 Play Time 00:55:10 Cumulative 414.7 hours Start 2025.05.26 @ 23:00:45 End 2025.07.31 @ 22:19:00 Sessions 3 Manual Loads 0 Difficulty Rogue Special Mode None Game No. 412 Rogue 407 Adventurer 5 Explorer 0 Win Type - Total 9 Types 6/0/0/3/0/0/0/0/0/0 Lore% 82 Gallery% 79 Achievement% 71 Wizard Run 0 Options --------- Layout 1 ASCII 0 Keyboard 0 Movement Arrows Keybinds 0 Fullscreen 1 Font 24/Terminus Map View 50x35 Zoom Use 0% Tactical HUD 1 Map Filters NONE Filters NONE Steam 1 RUN: 061c52b5-a2e3-4dd4-a514-7c3d0b0e45cc